fUSD/lending_fUSD_20250720
["ID","MTS","AMOUNT","RATE_DAILY","PERIOD"]
[373439590,1753011076430,-480.0,0.00019287,2]
[373439591,1753011076439,-480.0,0.00019287,2]
[373439592,1753011076449,-480.0,0.00019287,2]
[373439593,1753011076459,-480.0,0.00019287,2]
[373439594,1753011076468,-500.0,0.00019287,2]
[373439595,1753011076478,-480.0,0.00019287,2]
[373439596,1753011076487,-480.0,0.00019287,2]
[373439597,1753011076497,-480.0,0.00019287,2]
[373439598,1753011076506,-500.0,0.00019287,2]
[373439599,1753011076516,-480.0,0.00019287,2]
[373439600,1753011076526,-602.68,0.00019287,2]
[373439601,1753011076535,-480.0,0.00019287,2]
[373439602,1753011076547,-480.0,0.00019287,2]
[373439603,1753011076562,-460.0,0.00019287,2]
[373439604,1753011076574,-480.0,0.00019287,2]
[373439605,1753011076584,-480.0,0.00019287,2]
[373439606,1753011076594,-480.0,0.00019287,2]
[373439607,1753011076605,-466.16363653,0.00019287,2]
[373439608,1753011076615,-480.0,0.00019287,2]
[373439609,1753011076624,-500.0,0.00019287,2]
[373439610,1753011076634,-480.0,0.00019287,2]
[373439611,1753011076643,-480.0,0.00019287,2]
[373439612,1753011076653,-480.0,0.00019287,2]
[373439613,1753011076662,-480.0,0.00019287,2]
[373439614,1753011076672,-480.0,0.00019287,2]
[373439615,1753011076681,-480.0,0.00019287,2]
[373439616,1753011076690,-480.0,0.00019287,2]
[373439617,1753011076700,-480.0,0.00019287,2]
[373439618,1753011076710,-480.0,0.00019287,2]
[373439619,1753011076719,-480.0,0.00019287,2]
[373439620,1753011076729,-548.9,0.00019287,2]
[373439621,1753011076738,-480.0,0.00019287,2]
[373439622,1753011076747,-480.0,0.00019287,2]
[373439623,1753011076756,-424.04256206,0.00019287,2]
[373439624,1753011076766,-480.0,0.00019287,2]
[373439625,1753011076776,-466.37079009,0.00019287,2]
[373439626,1753011076787,-509.33,0.00019287,2]
[373439627,1753011076797,-480.0,0.00019287,2]
[373439628,1753011076805,-841.17,0.00019287,2]
[373439629,1753011076815,-480.0,0.00019287,2]
[373439630,1753011076823,-4078.33,0.00019287,2]
[373439631,1753011076833,-480.0,0.00019287,2]
[373439632,1753011076843,-480.0,0.00019287,2]
[373439633,1753011076853,-480.0,0.00019287,2]
[373439634,1753011076862,-460.0,0.00019287,2]
[373439635,1753011076874,-480.0,0.00019287,2]
[373439636,1753011076884,-304.07533692,0.00019287,2]
[373439637,1753011076894,-480.0,0.00019287,2]
[373439638,1753011076903,-480.0,0.00019287,2]
[373439639,1753011076913,-480.0,0.00019287,2]
[373439640,1753011076924,-1737.28,0.00019287,2]
[373439641,1753011076933,-1518.56,0.00019287,2]
[373439642,1753011076943,-850.62,0.00019287,2]
[373439643,1753011076955,-480.0,0.00019287,2]
[373439644,1753011076964,-424.20198238,0.00019287,2]
[373439645,1753011076974,-480.0,0.00019287,2]
[373439646,1753011076983,-480.0,0.00019287,2]
[373439647,1753011076992,-480.0,0.00019287,2]
[373439648,1753011077002,-480.0,0.00019287,2]
[373439649,1753011077011,-480.0,0.00019287,2]
[373439650,1753011077020,-480.0,0.00019287,2]
[373439651,1753011077029,-480.0,0.00019287,2]
[373439652,1753011077038,-1263.42,0.00019287,2]
[373439653,1753011077051,-480.0,0.00019287,2]
[373439654,1753011077060,-480.0,0.00019287,2]
[373439655,1753011077070,-602.1496524,0.00019287,2]
[373439656,1753011077078,-480.0,0.00019287,2]
[373439657,1753011077088,-315.05615391,0.00019287,2]
[373439658,1753011077097,-480.0,0.00019287,2]
[373439659,1753011077106,-1184.75,0.00019287,2]
[373439660,1753011077116,-480.0,0.00019287,2]
[373439661,1753011077125,-480.0,0.00019287,2]
[373439662,1753011077134,-480.0,0.00019287,2]
[373439663,1753011077143,-749.69,0.00019287,2]
[373439664,1753011077152,-480.0,0.00019287,2]
[373439665,1753011077161,-480.0,0.00019287,2]
[373439666,1753011077170,-480.0,0.00019287,2]
[373439667,1753011077179,-2361.73,0.00019287,2]
[373439668,1753011077188,-860.96,0.00019287,2]
[373439669,1753011077198,-480.0,0.00019287,2]
[373439670,1753011077207,-480.0,0.00019287,2]
[373439671,1753011077216,-480.0,0.00019287,2]
[373439672,1753011077224,-1057.29,0.00019287,2]
[373439673,1753011077233,-480.0,0.00019287,2]
[373439674,1753011077243,-557.82,0.00019287,2]
[373439675,1753011077252,-480.0,0.00019287,2]
[373439676,1753011077261,-480.0,0.00019287,2]
[373439677,1753011077271,-480.0,0.00019287,2]
[373439678,1753011077280,-480.0,0.00019287,2]
[373439679,1753011077289,-480.0,0.00019287,2]
[373439680,1753011077298,-2561.25,0.00019287,2]
[373439681,1753011077309,-818.38,0.00019287,2]
[373439682,1753011077317,-480.0,0.00019287,2]
[373439683,1753011077326,-324.15352508,0.00019287,2]
[373439684,1753011077335,-480.0,0.00019287,2]
[373439685,1753011077344,-480.0,0.00019287,2]
[373439686,1753011077354,-324.26577048,0.00019287,2]
[373439687,1753011077363,-480.0,0.00019287,2]
[373439688,1753011077372,-480.0,0.00019287,2]
[373439689,1753011077381,-480.0,0.00019287,2]
[373439690,1753011077390,-1055.78,0.00019287,2]
[373439691,1753011077400,-480.0,0.00019287,2]
[373439692,1753011077409,-368.11708092,0.00019287,2]
[373439693,1753011077418,-383.86589039,0.00019287,2]
[373439694,1753011077427,-480.0,0.00019287,2]
[373439695,1753011077436,-480.0,0.00019287,2]
[373439696,1753011077445,-480.0,0.00019287,2]
[373439697,1753011077456,-383.06290603,0.00019287,2]
[373439698,1753011077465,-480.0,0.00019287,2]
[373439699,1753011077474,-465.97773326,0.00019287,2]
[373439700,1753011077483,-480.0,0.00019287,2]
[373439701,1753011077492,-1527.94,0.00019287,2]
[373439702,1753011077500,-480.0,0.00019287,2]
[373439703,1753011077509,-382.31447511,0.00019287,2]
[373439704,1753011077519,-784.07,0.00019287,2]
[373439705,1753011077528,-526.08,0.00019287,2]
[373439706,1753011077537,-814.02,0.00019287,2]
[373439707,1753011077547,-480.0,0.00019287,2]
[373439708,1753011077559,-480.0,0.00019287,2]
[373439709,1753011077568,-399.56455299,0.00019287,2]
[373439710,1753011077577,-480.0,0.00019287,2]
[373439711,1753011077587,-346.23297511,0.00019287,2]
[373439712,1753011077596,-480.0,0.00019287,2]
[373439713,1753011077606,-876.75,0.00019287,2]
[373439714,1753011077615,-891.2,0.00019287,2]
[373439715,1753011077625,-440.0,0.00019287,2]
[373439716,1753011077635,-1023.27,0.00019287,2]
[373439717,1753011077644,-1248.97,0.00019287,2]
[373439718,1753011077654,-480.0,0.00019287,2]
[373439719,1753011077663,-480.0,0.00019287,2]
[373439720,1753011077672,-440.0,0.00019287,2]
[373439721,1753011077681,-483.15915383,0.00019287,2]
[373439722,1753011077691,-480.0,0.00019287,2]
[373439723,1753011077701,-480.0,0.00019287,2]
[373439724,1753011077710,-469.20497691,0.00019287,2]
[373439725,1753011077719,-480.0,0.00019287,2]
[373439726,1753011077728,-468.62166326,0.00019287,2]
[373439727,1753011077737,-480.0,0.00019287,2]
[373439728,1753011077746,-480.0,0.00019287,2]
[373439729,1753011077755,-504.86586057,0.00019287,2]
[373439730,1753011077765,-786.05,0.00019287,2]
[373439731,1753011077774,-629.58,0.00019287,2]
[373439732,1753011077784,-860.31,0.00019287,2]
[373439733,1753011077793,-480.0,0.00019287,2]
[373439734,1753011077802,-480.0,0.00019287,2]
[373439735,1753011077811,-480.0,0.00019287,2]
[373439736,1753011077820,-480.0,0.00019287,2]
[373439737,1753011077829,-391.028917,0.00019287,2]
[373439738,1753011077838,-480.0,0.00019287,2]
[373439739,1753011077847,-562.55,0.00019287,2]
[373439740,1753011077856,-500.0,0.00019287,2]
[373439741,1753011077865,-441.2439368,0.00019287,2]
[373439742,1753011077875,-404.71995462,0.00019287,2]
[373439743,1753011077884,-1270.53,0.00019287,2]
[373439744,1753011078117,-480.0,0.00019287,2]
[373439745,1753011078132,-480.0,0.00019287,2]
[373439746,1753011078141,-480.0,0.00019287,2]
[373439747,1753011078151,-1285.93,0.00019287,2]
[373439748,1753011078161,-480.0,0.00019287,2]
[373439749,1753011078170,-487.88,0.00019287,2]
[373439750,1753011078179,-460.0,0.00019287,2]
[373439751,1753011078189,-603.41,0.00019287,2]
[373439752,1753011078199,-480.0,0.00019287,2]
[373439753,1753011078208,-460.0,0.00019287,2]
[373439754,1753011078218,-767.19,0.00019287,2]
[373439755,1753011078227,-480.0,0.00019287,2]
[373439756,1753011078237,-480.0,0.00019287,2]
[373439757,1753011078247,-783.05,0.00019287,2]
[373439758,1753011078256,-440.0,0.00019287,2]
[373439759,1753011078266,-480.0,0.00019287,2]
[373439760,1753011078276,-480.0,0.00019287,2]
[373439761,1753011078285,-460.0,0.00019287,2]
[373439762,1753011078295,-347.37263793,0.00019287,2]
[373439763,1753011078304,-488.74039489,0.00019287,2]
[373439764,1753011078314,-615.86,0.00019287,2]
[373439765,1753011078323,-441.42171798,0.00019287,2]
[373439766,1753011078333,-480.0,0.00019287,2]
[373439767,1753011078342,-489.36390546,0.00019287,2]
[373439768,1753011078352,-480.0,0.00019287,2]
[373439769,1753011078361,-480.0,0.00019287,2]
[373439770,1753011078371,-462.82755827,0.00019287,2]
[373439771,1753011078380,-480.0,0.00019287,2]
[373439772,1753011078391,-480.0,0.00019287,2]
[373439773,1753011078400,-464.1105506,0.00019287,2]
[373439774,1753011078410,-461.29751074,0.00019287,2]
[373439775,1753011078420,-480.0,0.00019287,2]
[373439776,1753011078430,-480.0,0.00019287,2]
[373439777,1753011078439,-480.0,0.00019287,2]
[373439778,1753011078449,-480.0,0.00019287,2]
[373439779,1753011078458,-480.0,0.00019287,2]
[373439780,1753011078468,-802.3,0.00019287,2]
[373439781,1753011078477,-480.0,0.00019287,2]
[373439782,1753011078487,-764.45,0.00019287,2]
[373439783,1753011078497,-500.0,0.00019287,2]
[373439784,1753011078506,-480.0,0.00019287,2]
[373439785,1753011078516,-460.0,0.00019287,2]
[373439786,1753011078526,-1054.55,0.00019287,2]
[373439787,1753011078536,-599.47,0.00019287,2]
[373439788,1753011078546,-460.0,0.00019287,2]
[373439789,1753011078559,-531.23,0.00019287,2]
[373439790,1753011078569,-480.0,0.00019287,2]
[373439791,1753011078579,-480.0,0.00019287,2]
[373439792,1753011078589,-539.37,0.00019287,2]
[373439793,1753011078599,-443.63073303,0.00019287,2]
[373439794,1753011078608,-480.0,0.00019287,2]
[373439795,1753011078618,-1307.95,0.00019287,2]
[373439796,1753011078628,-480.0,0.00019287,2]
[373439797,1753011078637,-480.0,0.00019287,2]
[373439798,1753011078648,-460.0,0.00019287,2]
[373439799,1753011078657,-687.82,0.00019287,2]
[373439800,1753011078667,-480.0,0.00019287,2]
[373439801,1753011078676,-463.12770412,0.00019287,2]
[373439802,1753011078686,-1300.76,0.00019287,2]
[373439803,1753011078695,-902.73,0.00019287,2]
[373439804,1753011078706,-480.0,0.00019287,2]
[373439805,1753011078715,-480.0,0.00019287,2]
[373439806,1753011078725,-462.61992151,0.00019287,2]
[373439807,1753011078734,-480.0,0.00019287,2]
[373439808,1753011078744,-618.77,0.00019287,2]
[373439809,1753011078753,-480.0,0.00019287,2]
[373439810,1753011078763,-480.0,0.00019287,2]
[373439811,1753011078772,-536.2421588,0.00019287,2]
[373439812,1753011078782,-480.0,0.00019287,2]
[373439813,1753011078791,-480.0,0.00019287,2]
[373439814,1753011078801,-480.0,0.00019287,2]
[373439815,1753011078810,-480.0,0.00019287,2]
[373439816,1753011078819,-855.73,0.00019287,2]
[373439817,1753011078829,-480.0,0.00019287,2]
[373439818,1753011078839,-480.0,0.00019287,2]
[373439819,1753011078848,-480.0,0.00019287,2]
[373439820,1753011078858,-480.0,0.00019287,2]
[373439821,1753011078867,-480.0,0.00019287,2]
[373439822,1753011078877,-480.0,0.00019287,2]
[373439823,1753011078886,-1294.85,0.00019287,2]
[373439824,1753011078895,-1075.18,0.00019287,2]
[373439825,1753011078905,-480.0,0.00019287,2]
[373439826,1753011078915,-480.0,0.00019287,2]
[373439827,1753011078924,-480.0,0.00019287,2]
[373439828,1753011078933,-480.0,0.00019287,2]
[373439829,1753011078943,-480.0,0.00019287,2]
[373439830,1753011078955,-432.68,0.00019287,2]
[373439831,1753011078965,-633.39,0.00019287,2]
[373439832,1753011078974,-480.0,0.00019287,2]
[373439833,1753011078983,-511.74,0.00019287,2]
[373439834,1753011078993,-480.0,0.00019287,2]
[373439835,1753011079003,-480.0,0.00019287,2]
[373439836,1753011079013,-480.0,0.00019287,2]
[373439837,1753011079023,-1193.19,0.00019287,2]
[373439838,1753011079032,-480.0,0.00019287,2]
[373439839,1753011079041,-328.22563196,0.00019287,2]
[373439840,1753011079051,-480.0,0.00019287,2]
[373439841,1753011079060,-2272.03,0.00019287,2]
[373439842,1753011079070,-480.0,0.00019287,2]
[373439843,1753011079079,-480.0,0.00019287,2]
[373439844,1753011079090,-480.0,0.00019287,2]
[373439845,1753011079101,-225.09489466,0.00019287,2]
[373439846,1753011079110,-480.0,0.00019287,2]
[373439847,1753011079120,-480.0,0.00019287,2]
[373439848,1753011079129,-480.0,0.00019287,2]
[373439849,1753011079139,-512.65910976,0.00019287,2]
[373439850,1753011079148,-871.81,0.00019287,2]
[373439851,1753011079158,-854.57,0.00019287,2]
[373439852,1753011079167,-480.0,0.00019287,2]
[373439853,1753011079177,-480.0,0.00019287,2]
[373439854,1753011079186,-500.79,0.00019287,2]
[373439855,1753011079196,-480.0,0.00019287,2]
[373439856,1753011079207,-480.0,0.00019287,2]
[373439857,1753011079217,-385.05615538,0.00019287,2]
[373439858,1753011079227,-491.79,0.00019287,2]
[373439859,1753011079236,-735.22,0.00019287,2]
[373439860,1753011079245,-800.53,0.00019287,2]
[373439861,1753011079254,-480.0,0.00019287,2]
[373439862,1753011079264,-1087.8,0.00019287,2]
[373439863,1753011079273,-500.0,0.00019287,2]
[373439864,1753011079282,-480.0,0.00019287,2]
[373439865,1753011079291,-1146.21,0.00019287,2]
[373439866,1753011079301,-480.0,0.00019287,2]
[373439867,1753011079310,-480.0,0.00019287,2]
[373439868,1753011079319,-1757.62,0.00019287,2]
[373439869,1753011079329,-480.0,0.00019287,2]
[373439870,1753011079338,-480.0,0.00019287,2]
[373439871,1753011079347,-482.13901187,0.00019287,2]
[373439872,1753011079356,-488.71800289,0.00019287,2]
[373439873,1753011079367,-480.0,0.00019287,2]
[373439874,1753011079377,-480.0,0.00019287,2]
[373439875,1753011079387,-754.9,0.00019287,2]
[373439876,1753011079397,-480.0,0.00019287,2]
[373439877,1753011079407,-642.05,0.00019287,2]
[373439878,1753011079416,-480.0,0.00019287,2]
[373439879,1753011079426,-480.0,0.00019287,2]
[373439880,1753011079435,-480.0,0.00019287,2]
[373439881,1753011079445,-513.89,0.00019287,2]
[373439882,1753011079456,-480.0,0.00019287,2]
[373439883,1753011079465,-480.0,0.00019287,2]
[373439884,1753011079475,-480.0,0.00019287,2]
[373439885,1753011079484,-480.0,0.00019287,2]
[373439886,1753011079494,-480.0,0.00019287,2]
[373439887,1753011079506,-480.0,0.00019287,2]
[373439888,1753011079515,-869.3,0.00019287,2]
[373439889,1753011079525,-480.0,0.00019287,2]
[373439890,1753011079535,-480.0,0.00019287,2]
[373439891,1753011079544,-480.0,0.00019287,2]
[373439892,1753011079558,-480.0,0.00019287,2]
[373439893,1753011079567,-1030.22,0.00019287,2]
[373439894,1753011079577,-480.0,0.00019287,2]
[373439895,1753011079586,-480.0,0.00019287,2]
[373439896,1753011079596,-480.0,0.00019287,2]
[373439897,1753011079605,-480.0,0.00019287,2]
[373439898,1753011079614,-506.56,0.00019287,2]
[373439899,1753011079626,-480.0,0.00019287,2]
[373439900,1753011079635,-480.0,0.00019287,2]
[373439901,1753011079644,-480.0,0.00019287,2]
[373439902,1753011079654,-480.0,0.00019287,2]
[373439903,1753011079663,-2582.14,0.00019287,2]
[373439904,1753011079672,-480.0,0.00019287,2]
[373439905,1753011079681,-401.99650349,0.00019287,2]
[373439906,1753011079691,-480.0,0.00019287,2]
[373439907,1753011079700,-480.0,0.00019287,2]
[373439908,1753011079711,-772.44,0.00019287,2]
[373439909,1753011079721,-480.0,0.00019287,2]
[373439910,1753011079730,-480.0,0.00019287,2]
[373439911,1753011079740,-480.0,0.00019287,2]
[373439912,1753011079750,-480.0,0.00019287,2]
[373439913,1753011079761,-480.0,0.00019287,2]
[373439914,1753011079771,-480.0,0.00019287,2]
[373439915,1753011079780,-480.0,0.00019287,2]
[373439916,1753011079789,-480.0,0.00019287,2]
[373439917,1753011079799,-480.0,0.00019287,2]
[373439918,1753011079808,-480.0,0.00019287,2]
[373439919,1753011079818,-480.0,0.00019287,2]
[373439920,1753011079827,-480.0,0.00019287,2]
[373439921,1753011079836,-932.65,0.00019287,2]
[373439922,1753011079845,-480.0,0.00019287,2]
[373439923,1753011079855,-902.49,0.00019287,2]
[373439924,1753011079864,-480.0,0.00019287,2]
[373439925,1753011079873,-1104.03,0.00019287,2]
[373439926,1753011079883,-480.0,0.00019287,2]
[373439927,1753011079893,-480.0,0.00019287,2]
[373439928,1753011079902,-407.93145737,0.00019287,2]
[373439929,1753011079912,-480.0,0.00019287,2]
[373439930,1753011079921,-866.64,0.00019287,2]
[373439931,1753011079930,-480.0,0.00019287,2]
[373439932,1753011079939,-480.0,0.00019287,2]
[373439933,1753011079952,-480.0,0.00019287,2]
[373439934,1753011079962,-757.61,0.00019287,2]
[373439935,1753011079971,-480.0,0.00019287,2]
[373439936,1753011079980,-469.76275503,0.00019287,2]
[373439937,1753011079990,-5456.05,0.00019287,2]
[373439938,1753011079999,-488.67551273,0.00019287,2]
[373439939,1753011080009,-480.0,0.00019287,2]
[373439940,1753011080018,-480.0,0.00019287,2]
[373439941,1753011080028,-2119.28,0.00019287,2]
[373439942,1753011080037,-480.0,0.00019287,2]
[373439943,1753011080047,-480.0,0.00019287,2]
[373439944,1753011080056,-460.0,0.00019287,2]
[373439945,1753011080065,-480.0,0.00019287,2]
[373439946,1753011080074,-959.14,0.00019287,2]
[373439947,1753011080084,-480.0,0.00019287,2]
[373439948,1753011080093,-480.0,0.00019287,2]
[373439949,1753011080102,-480.0,0.00019287,2]
[373439950,1753011080112,-480.0,0.00019287,2]
[373439951,1753011080121,-480.0,0.00019287,2]
[373439952,1753011080130,-480.0,0.00019287,2]
[373439953,1753011080139,-480.0,0.00019287,2]
[373439954,1753011080149,-480.0,0.00019287,2]
[373439955,1753011080158,-480.0,0.00019287,2]
[373439956,1753011080167,-1354.3,0.00019287,2]
[373439957,1753011080177,-480.0,0.00019287,2]
[373439958,1753011080186,-480.0,0.00019287,2]
[373439959,1753011080196,-480.0,0.00019287,2]
[373439960,1753011080205,-177.20578027,0.00019287,2]
[373439961,1753011080246,-327.06421973,0.00019287,2]
[373439962,1753011080255,-480.0,0.00019287,2]
[373439963,1753011080264,-480.0,0.00019287,2]
[373439964,1753011080274,-891.78,0.00019287,2]
[373439965,1753011080283,-480.0,0.00019287,2]
[373439966,1753011080292,-500.0,0.00019287,2]
[373439967,1753011080302,-717.12,0.00019287,2]
[373439968,1753011080312,-480.0,0.00019287,2]
[373439969,1753011080321,-480.0,0.00019287,2]
[373439970,1753011080330,-766.98,0.00019287,2]
[373439971,1753011080339,-286.65782685,0.00019287,2]
[373439972,1753011080348,-480.0,0.00019287,2]
[373439973,1753011080358,-480.0,0.00019287,2]
[373439974,1753011080367,-2325.95699201,0.00019287,2]
[373439975,1753011080379,-2804.05300799,0.00019287,2]
[373439976,1753011080388,-4269.24479364,0.00019287,2]
[373439977,1753011080399,-860.76520636,0.00019287,2]
[373439978,1753011080408,-480.0,0.00019287,2]
[373439979,1753011080418,-480.0,0.00019287,2]
[373439980,1753011080427,-480.0,0.00019287,2]
[373439981,1753011080437,-260.0,0.00019287,2]
[373439982,1753011080446,-734.32,0.00019287,2]
[373439983,1753011080457,-485.4383364,0.00019287,2]
[373439984,1753011080466,-480.0,0.00019287,2]
[373439985,1753011080475,-633.72,0.00019287,2]
[373439986,1753011080484,-2042.48,0.00019287,2]
[373439987,1753011080497,-480.0,0.00019287,2]
[373439988,1753011080507,-525.27396953,0.00019287,2]
[373439989,1753011080516,-480.0,0.00019287,2]
[373439990,1753011080525,-480.0,0.00019287,2]
[373439991,1753011080535,-480.0,0.00019287,2]
[373439992,1753011080547,-1125.02,0.00019287,2]
[373439993,1753011080557,-480.0,0.00019287,2]
[373439994,1753011080566,-480.0,0.00019287,2]
[373439995,1753011080575,-1706.0145255,0.00019287,2]
[373439996,1753011080714,-1820.37,0.00019178,2]
[373439997,1753011080723,-2833.9854745,0.00019287,2]
[373439998,1753011080733,-452.51532873,0.00019287,2]
[373439999,1753011080742,-480.0,0.00019287,2]
[373440000,1753011080751,-513.87,0.00019287,2]
[373440001,1753011080761,-480.0,0.00019287,2]
[373440002,1753011080770,-480.0,0.00019287,2]
[373440003,1753011080780,-480.0,0.00019287,2]
[373440004,1753011080790,-744.86,0.00019287,2]
[373440005,1753011080799,-480.0,0.00019287,2]
[373440006,1753011080809,-149.28405211,0.00019287,2]
[373440007,1753011080821,-330.71594789,0.00019287,2]
[373440008,1753011080830,-480.0,0.00019287,2]
[373440009,1753011080839,-480.0,0.00019287,2]
[373440010,1753011080848,-480.0,0.00019287,2]
[373440011,1753011080857,-480.0,0.00019287,2]
[373440012,1753011080866,-480.0,0.00019287,2]
[373440013,1753011080875,-930.19,0.00019287,2]
[373440014,1753011080885,-480.0,0.00019287,2]
[373440015,1753011080895,-460.0,0.00019287,2]
[373440016,1753011080904,-483.95732634,0.00019287,2]
[373440017,1753011080914,-480.0,0.00019287,2]
[373440018,1753011080923,-480.0,0.00019287,2]
[373440019,1753011080932,-1000.0,0.00019287,2]
[373440020,1753011080943,-480.0,0.00019287,2]
[373440021,1753011080961,-2827.55,0.00019287,2]
[373440022,1753011080970,-1000.0,0.00019287,2]
[373440023,1753011080980,-480.0,0.00019287,2]
[373440024,1753011080989,-924.33,0.00019287,2]
[373440025,1753011080998,-480.0,0.00019287,2]
[373440026,1753011081008,-480.0,0.00019287,2]
[373440027,1753011081017,-469.53717219,0.00019287,2]
[373440028,1753011081026,-480.0,0.00019287,2]
[373440029,1753011081036,-507.00882832,0.00019287,2]
[373440030,1753011081045,-480.0,0.00019287,2]
[373440031,1753011081054,-2233.72,0.00019287,2]
[373440032,1753011081063,-480.0,0.00019287,2]
[373440033,1753011081073,-480.0,0.00019287,2]
[373440034,1753011081082,-1215.82,0.00019287,2]
[373440035,1753011081091,-480.0,0.00019287,2]
[373440036,1753011081100,-480.0,0.00019287,2]
[373440037,1753011081109,-604.49183344,0.00019287,2]
[373440038,1753011081119,-480.0,0.00019287,2]
[373440039,1753011081128,-480.0,0.00019287,2]
[373440040,1753011081138,-518.37,0.00019287,2]
[373440041,1753011081148,-480.0,0.00019287,2]
[373440042,1753011081157,-840.02,0.00019287,2]
[373440043,1753011081167,-480.0,0.00019287,2]
[373440044,1753011081176,-1783.35,0.00019287,2]
[373440045,1753011081186,-1567.13,0.00019287,2]
[373440046,1753011081195,-1309.18,0.00019287,2]
[373440047,1753011081205,-480.0,0.00019287,2]
[373440048,1753011081214,-480.0,0.00019287,2]
[373440049,1753011081223,-480.0,0.00019287,2]
[373440050,1753011081233,-480.0,0.00019287,2]
[373440051,1753011081242,-480.0,0.00019287,2]
[373440052,1753011081251,-209.3591146,0.00019287,2]
[373440053,1753011081260,-801.13,0.00019287,2]
[373440054,1753011081270,-957.2,0.00019287,2]
[373440055,1753011081279,-480.0,0.00019287,2]
[373440056,1753011081288,-244.95758288,0.00019287,2]
[373440057,1753011081297,-1586.77,0.00019287,2]
[373440058,1753011081307,-1481.48,0.00019287,2]
[373440059,1753011081316,-466.10326974,0.00019287,2]
[373440060,1753011081325,-480.0,0.00019287,2]
[373440061,1753011081335,-480.0,0.00019287,2]
[373440062,1753011081345,-480.0,0.00019287,2]
[373440063,1753011081354,-313.47385081,0.00019287,2]
[373440064,1753011081364,-480.0,0.00019287,2]
[373440065,1753011081373,-1275.62,0.00019287,2]
[373440066,1753011081383,-376.23084541,0.00019287,2]
[373440067,1753011081392,-480.0,0.00019287,2]
[373440068,1753011081402,-611.74,0.00019287,2]
[373440069,1753011081411,-480.0,0.00019287,2]
[373440070,1753011081420,-1358.77,0.00019287,2]
[373440071,1753011081430,-1861.85,0.00019287,2]
[373440072,1753011081439,-1403.73,0.00019287,2]
[373440073,1753011081448,-465.54372016,0.00019287,2]
[373440074,1753011081461,-781.54,0.00019287,2]
[373440075,1753011081686,-593.34659904,0.00019287,2]
[373440076,1753011081696,-1192.02,0.00019287,2]
[373440077,1753011081707,-480.0,0.00019287,2]
[373440078,1753011081717,-480.0,0.00019287,2]
[373440079,1753011081727,-2950.83,0.00019287,2]
[373440080,1753011081737,-484.11432142,0.00019287,2]
[373440081,1753011081749,-2057.18,0.00019287,2]
[373440082,1753011081760,-357.08894004,0.00019287,2]
[373440083,1753011081770,-221.07744779,0.00019287,2]
[373440084,1753011081801,-258.92255221,0.00019287,2]
[373440085,1753011081812,-1008.73,0.00019287,2]
[373440086,1753011081823,-748.92,0.00019287,2]
[373440087,1753011081833,-3129.02,0.00019287,2]
[373440088,1753011081844,-480.0,0.00019287,2]
[373440089,1753011081854,-480.0,0.00019287,2]